bitfinex/quotes_ETHUSD_20250726
["timestamp","ask_amount","ask_price","bid_price","bid_amount"]
[1753494668471,0.4739,3715.3,3715.1,2.69170664]
[1753494669972,0.4739,3715.3,3715.2,2.69164513]
[1753494670170,0.4739,3715.3,3715.1,2.69169379]
[1753494672474,0.4739,3715.3,3715.2,2.69164513]
[1753494672831,0.1344,3715.4,3715.3,2.69157268]
[1753494673559,0.1344,3715.4,3715.2,2.69162808]
[1753494674479,0.6083,3715.4,3715.2,2.69162808]
[1753494675588,0.6083,3715.4,3715.1,2.69169923]
[1753494675966,0.1344,3715.4,3715.1,2.69169923]
[1753494676172,0.4739,3715.3,3715.1,2.69169923]
[1753494679683,0.1344,3715.4,3715.2,2.69164513]
[1753494680287,0.5938,3715.4,3715.2,2.69164513]
[1753494680474,0.5938,3715.4,3715.1,2.69170375]
[1753494680787,0.4594,3715.3,3715.1,2.69170375]
[1753494685695,0.4594,3715.3,3715.0,6.7744996]
[1753494688658,0.4594,3715.3,3715.0,6.77450946]
[1753494688860,0.1344,3715.4,3715.0,6.77450946]
[1753494689060,0.4594,3715.2,3715.0,6.77450946]
[1753494694413,0.4594,3715.1,3715.0,4.08272058]
[1753494696293,4.55843758,3715.1,3715.0,4.08272058]
[1753494696499,1.8192,3715.1,3715.0,4.08272058]
[1753494696801,1.0616,3715.1,3714.2,4.08272058]
[1753494696980,0.892,3714.6,3714.2,6.51972058]
[1753494697183,0.892,3714.6,3714.3,3.0]
[1753494697405,1.28560697,3714.5,3714.3,3.0]
[1753494697715,0.9272,3714.4,3714.3,3.0]
[1753494698414,0.9272,3714.4,3713.4,3.03637365]
[1753494698713,2.69267627,3713.8,3713.4,0.1344]
[1753494698879,1.98220763,3713.7,3713.3,4.08272058]
[1753494699078,3.75441905,3713.6,3713.3,4.08272058]
[1753494699385,0.9272,3713.5,3713.0,2.5734]
[1753494699590,0.9272,3713.4,3713.1,3.0]
[1753494699784,0.1344,3713.6,3713.0,5.26661776]
[1753494700002,0.9272,3713.3,3713.1,3.0]
[1753494700203,0.4594,3713.3,3713.1,5.69315496]
[1753494700792,0.4594,3713.3,3713.2,2.6930949]
[1753494700994,0.4678,3713.5,3713.3,2.69295632]
[1753494701193,0.4594,3713.4,3713.3,2.69295632]
[1753494701388,0.1344,3713.6,3713.4,2.69293122]
[1753494701788,0.5938,3713.6,3713.4,2.69293122]
[1753494702730,0.5938,3713.6,3713.5,2.69287733]
[1753494702932,0.5938,3713.6,3713.4,2.69293605]
[1753494703412,0.4594,3713.5,3713.3,2.69300756]
[1753494703612,0.1344,3713.6,3713.3,2.69300756]
[1753494703925,0.9272,3713.5,3713.4,2.69294985]
[1753494704294,0.4678,3713.5,3713.4,2.69294985]
[1753494704510,0.9272,3713.5,3713.4,2.69294985]
[1753494704842,0.1344,3713.6,3713.5,2.69287733]
[1753494705019,2.5734,3713.7,3713.5,2.69287733]
[1753494705225,2.5734,3713.7,3713.4,2.69294985]
[1753494705226,2.5734,3713.7,3713.6,2.69280482]
[1753494705534,0.4594,3713.9,3713.8,2.6926598]
[1753494705917,0.5938,3713.9,3713.7,2.69272775]
[1753494706245,0.1344,3713.9,3713.7,2.69272775]
[1753494706444,0.4594,3713.8,3713.7,2.69272775]
[1753494706646,0.1344,3713.9,3713.8,2.6926598]
[1753494706809,0.5938,3713.9,3713.8,2.6926598]
[1753494707007,2.439,3714.1,3714.0,2.6925148]
[1753494707246,2.85662,3714.1,3714.0,2.6925148]
[1753494707415,3.45042,3714.1,3714.0,2.6925148]
[1753494707743,2.439,3714.1,3714.0,2.6925148]
[1753494708417,2.8984,3714.1,3714.0,2.6925148]
[1753494708848,2.439,3714.1,3714.0,2.6925148]
[1753494710514,3.3443,3714.1,3714.0,2.6925148]
[1753494712050,2.8976,3714.1,3714.0,2.6925148]
[1753494714967,4.48747,3714.1,3713.8,4.08272058]
[1753494715126,0.9053,3714.0,3713.8,4.08272058]
[1753494715331,0.1344,3713.9,3713.8,4.08272058]
[1753494715792,0.1344,3713.9,3713.8,6.77538038]
[1753494716144,0.1344,3714.0,3713.9,2.69258031]
[1753494716847,2.439,3714.1,3714.0,2.6925148]
[1753494718852,0.1344,3714.2,3714.0,2.6925148]
[1753494719236,0.593,3714.2,3714.0,2.6925148]
[1753494719436,0.593,3714.2,3714.1,2.69244231]
[1753494719653,0.1344,3714.2,3714.1,2.69244231]
[1753494720484,0.1344,3714.2,3714.0,2.69249546]
[1753494720802,0.593,3714.2,3714.0,2.69249546]
[1753494721295,0.4586,3714.1,3713.9,2.69257372]
[1753494721614,0.4586,3714.1,3713.8,4.08272058]
[1753494721615,0.1344,3714.2,3714.0,2.6925148]
[1753494721762,0.5811,3714.2,3714.0,2.6925148]
[1753494722112,0.4586,3714.1,3714.0,2.6925148]
[1753494722695,0.1344,3714.2,3714.1,2.69244231]
[1753494722896,0.4586,3714.4,3714.2,2.69233911]
[1753494723599,0.1344,3714.5,3714.2,4.05212057]
[1753494723898,0.1344,3714.5,3714.4,2.69222485]
[1753494724398,2.44,3714.8,3714.5,2.69210848]
[1753494724601,0.1344,3714.6,3714.5,2.69210848]
[1753494727316,0.1344,3714.6,3714.4,2.69221549]
[1753494727608,0.593,3714.6,3714.4,2.69221549]
[1753494727913,0.4586,3714.5,3714.4,2.69221549]
[1753494729498,0.1344,3714.6,3714.5,2.69215237]
[1753494729812,0.593,3714.6,3714.5,2.69215237]
[1753494731608,0.1344,3714.6,3714.5,2.69215237]
[1753494732516,2.44,3714.8,3714.6,2.69203819]
[1753494732811,2.5744,3714.8,3714.6,2.69203819]
[1753494733016,0.4586,3714.7,3714.6,2.69203819]
[1753494734312,0.4586,3714.7,3714.6,2.6920799]
[1753494737431,0.4586,3714.7,3714.5,2.692126]
[1753494737729,0.4586,3714.6,3714.5,2.692126]
[1753494738751,0.9053,3714.6,3714.3,4.21712058]
[1753494739047,0.1344,3714.5,3714.3,4.08272058]
[1753494739252,0.9053,3714.4,3714.3,4.08272058]
[1753494741249,0.9053,3714.4,3714.2,5.13031589]
[1753494741541,0.4701,3714.3,3714.2,5.13031589]
[1753494742472,0.6045,3714.5,3714.2,5.13031589]
[1753494742761,0.4701,3714.4,3714.2,5.13031589]
[1753494742970,0.599,3714.5,3714.2,5.13031589]
[1753494743120,0.4701,3714.3,3714.2,5.13031589]
[1753494743322,0.6045,3714.5,3714.1,3.0]
[1753494743652,0.6045,3714.5,3714.3,2.69228709]
[1753494745830,0.6045,3714.5,3714.4,2.69222485]
[1753494746341,0.6045,3714.5,3714.3,2.69227681]
[1753494746862,0.6045,3714.5,3714.4,2.69222485]
[1753494748957,0.6045,3714.5,3714.3,2.69227021]
[1753494749761,0.6045,3714.5,3714.2,2.69235258]
[1753494749762,0.1344,3714.5,3714.2,2.69235258]
[1753494749968,0.4701,3714.4,3714.2,2.69235258]
[1753494750863,0.4701,3714.3,3714.2,2.69235258]
[1753494751043,0.6045,3714.5,3714.3,2.69229567]
[1753494751246,0.1344,3714.5,3714.3,2.69229567]
[1753494751444,0.4701,3714.4,3714.3,2.69229567]
[1753494752274,0.1344,3714.5,3714.4,2.69222485]
[1753494752456,0.6045,3714.5,3714.4,2.69222485]
[1753494752660,0.1344,3714.5,3714.4,3.59832485]
[1753494752961,0.4701,3714.8,3714.5,2.69211877]
[1753494753162,0.1344,3714.7,3714.6,2.6920799]
[1753494753571,0.6045,3714.7,3714.6,2.6920799]
[1753494754380,0.6045,3714.7,3714.5,2.69213811]
[1753494754557,0.599,3714.7,3714.5,2.69213811]
[1753494754742,0.4701,3714.6,3714.5,2.69213811]
[1753494756269,0.8246,3714.5,3714.2,4.08272058]
[1753494756472,0.9347,3714.4,3714.2,4.08272058]
[1753494756779,1.0691,3714.3,3714.2,4.08272058]
[1753494758283,4.55499733,3714.3,3714.2,4.08272058]
[1753494758492,1.8627,3714.3,3713.3,4.08272058]
[1753494758654,1.8627,3714.3,3713.1,0.8124]
[1753494758655,0.1344,3713.6,3713.2,4.08272058]
[1753494758982,0.9347,3713.5,3713.2,4.08272058]
[1753494759188,0.1344,3713.6,3713.1,4.08272058]
[1753494759351,0.1344,3713.6,3713.2,3.0]
[1753494759352,0.9347,3713.4,3713.2,3.0]
[1753494759554,0.9347,3713.3,3713.1,4.08272058]
[1753494759775,0.4701,3713.2,3713.1,4.08272058]
[1753494760081,0.4701,3713.2,3713.1,9.77588801]
[1753494761287,0.4646,3713.5,3713.2,3.0]
[1753494761487,0.9347,3713.4,3713.2,3.0]
[1753494761654,0.4701,3713.3,3713.2,3.0]
[1753494762066,0.4701,3713.3,3713.2,2.6930949]
[1753494763701,0.1344,3713.6,3713.3,2.69302237]
[1753494764255,0.1344,3713.6,3713.3,2.69302175]
[1753494764448,0.6045,3713.6,3713.3,2.69302175]
[1753494764704,0.1344,3713.6,3713.3,2.69302175]
[1753494765000,0.6045,3713.6,3713.3,2.69302175]
[1753494766095,0.4701,3713.8,3713.4,2.69293365]
[1753494766299,0.1344,3713.7,3713.3,3.59906906]
[1753494766592,0.6045,3713.7,3713.3,3.14526906]
[1753494766799,0.6045,3713.7,3713.4,2.69294818]
[1753494775320,0.6045,3713.7,3713.3,2.69299542]
[1753494775524,0.4788,3713.6,3713.3,2.69299542]
[1753494776576,0.4788,3713.5,3713.3,2.69299542]
[1753494777507,0.4788,3713.4,3713.2,4.21712058]
[1753494777674,0.4332,3713.5,3713.3,2.69302237]
[1753494777875,0.1344,3713.7,3713.4,2.69294736]
[1753494778405,0.4788,3713.6,3713.4,2.69294736]
[1753494778606,0.4788,3713.5,3713.4,2.69294736]
[1753494778973,1.0464,3713.7,3713.4,2.69294736]
[1753494779173,0.4788,3713.6,3713.3,2.69300819]
[1753494779374,0.4788,3713.5,3713.3,2.69300819]
[1753494780388,0.4788,3713.4,3713.2,2.8274729]
[1753494780582,0.4788,3713.3,3713.2,0.1344]
[1753494780881,0.912,3713.3,3713.0,5.5734]
[1753494781387,0.4788,3713.2,3713.0,5.5734]
[1753494781888,0.4788,3713.2,3713.0,2.439]
[1753494782204,0.912,3713.1,3713.0,2.439]
[1753494782411,0.912,3713.1,3712.7,2.69342705]
[1753494782412,2.69323996,3713.0,3712.7,2.439]
[1753494782718,1.6685,3712.9,3712.7,2.439]
[1753494783095,0.4788,3712.8,3712.7,2.439]
[1753494783291,0.4788,3712.8,3712.5,2.439]
[1753494783609,0.4788,3712.7,3712.5,2.439]
[1753494784819,0.7565,3712.9,3712.4,2.82807293]
[1753494785123,0.4788,3712.6,3712.5,2.439]
[1753494785321,0.4788,3712.6,3712.5,3.0]
[1753494785622,0.4788,3712.8,3712.5,3.0]
[1753494785822,1.1897,3712.9,3712.5,3.0]
[1753494786024,0.4788,3712.8,3712.5,3.0]
[1753494786402,0.4788,3712.7,3712.5,3.0]
[1753494787527,0.4788,3712.6,3712.5,3.0]
[1753494788099,0.4788,3712.6,3712.5,5.439]
[1753494789328,0.4788,3712.6,3712.5,3.0]
[1753494789527,0.4788,3712.6,3712.5,5.439]
[1753494789902,0.4788,3712.6,3712.5,3.0]
[1753494790105,0.912,3712.6,3712.5,5.439]
[1753494790505,0.4788,3712.6,3712.5,3.0]
[1753494790830,0.912,3712.6,3712.4,2.5734]
[1753494791033,0.4788,3712.5,3712.4,5.5734]
[1753494791396,0.912,3712.5,3712.2,2.439]
[1753494791619,0.4788,3712.4,3712.3,0.1344]
[1753494793545,0.4788,3712.6,3712.3,0.1344]
[1753494793701,0.912,3712.6,3712.3,0.1344]
[1753494794030,0.4332,3712.5,3712.3,0.1344]
[1753494794396,0.4788,3712.4,3712.3,0.1344]
[1753494794806,0.912,3712.4,3712.1,0.1344]
[1753494795016,0.912,3712.4,3712.1,2.439]
[1753494795228,0.912,3712.4,3711.7,3.69797568]
[1753494795229,0.912,3712.3,3711.4,0.8295]
[1753494795449,0.1344,3712.1,3711.6,0.1344]
[1753494795630,1.7004,3712.0,3711.4,2.439]
[1753494795831,1.24125523,3712.0,3711.5,0.1344]
[1753494796031,1.0464,3711.9,3711.4,2.439]
[1753494796201,0.912,3711.8,3711.4,2.439]
[1753494796401,0.912,3711.7,3711.4,5.133394]
[1753494796701,0.1344,3711.9,3711.4,5.133394]
[1753494796909,0.4788,3711.8,3711.4,5.134394]
[1753494797315,0.4788,3711.8,3711.4,2.694394]
[1753494797517,0.5676,3711.9,3711.4,5.134394]
[1753494797694,0.5676,3711.9,3711.5,2.69432407]
[1753494797695,0.4788,3711.7,3711.5,2.69432407]
[1753494797915,0.4788,3711.6,3711.5,2.69432407]
[1753494798446,0.4788,3711.8,3711.5,2.69432407]
[1753494798644,0.4788,3711.8,3711.5,5.13432407]
[1753494799842,0.4788,3711.8,3711.6,2.69425354]
[1753494799999,0.1344,3711.9,3711.6,2.69425584]
[1753494800336,0.1344,3711.9,3711.6,3.60705584]
[1753494800500,0.1344,3711.9,3711.6,3.15325584]
[1753494800696,0.1344,3711.9,3711.6,2.69425584]
[1753494800928,0.1344,3711.9,3711.7,2.44]
[1753494801144,0.6314,3711.9,3711.7,2.44]
[1753494802247,0.1344,3711.9,3711.7,2.44]
[1753494802449,0.1344,3712.1,3711.7,5.13415924]
[1753494802636,0.497,3711.9,3711.7,2.44]
[1753494802819,0.1344,3712.1,3711.7,2.44]
[1753494803019,0.9276,3712.0,3711.7,5.13417511]
[1753494803233,0.9276,3711.9,3711.7,5.13417511]
[1753494803550,0.497,3711.8,3711.7,5.13417511]
[1753494803931,0.497,3711.8,3711.7,5.13418325]
[1753494804533,1.2777,3711.8,3711.7,2.44]
[1753494804715,1.88573851,3711.8,3711.7,2.44]
[1753494805444,1.88573851,3711.8,3711.4,2.69437576]
[1753494805749,0.9276,3711.7,3711.6,2.44]
[1753494806650,0.9276,3711.7,3711.5,2.44]
[1753494806853,0.9276,3711.6,3711.5,2.44]
[1753494807651,0.9276,3711.6,3711.4,4.08272058]
[1753494807947,0.4306,3711.6,3711.5,2.44]
[1753494808456,0.9276,3711.6,3711.5,2.44]
[1753494808646,1.38559042,3711.6,3711.5,2.44]
[1753494808948,0.9276,3711.6,3711.5,2.44]
[1753494809152,0.9276,3711.6,3711.4,2.44]
[1753494809354,0.9276,3711.5,3711.4,2.44]
[1753494809533,0.9276,3711.5,3711.1,3.0]
[1753494809534,1.062,3711.5,3711.3,2.44]
[1753494809738,0.9276,3711.4,3711.1,7.08272058]
[1753494810062,0.4306,3711.4,3711.3,2.44]
[1753494810443,0.9276,3711.4,3711.3,2.44]
[1753494811131,0.9276,3711.4,3711.1,4.08272058]
[1753494811333,0.4306,3711.4,3711.2,2.44]
[1753494811554,0.497,3711.3,3711.2,2.44]
[1753494812365,0.1344,3711.5,3711.2,5.13454623]
[1753494812961,0.9276,3711.4,3711.2,2.44]
[1753494813153,0.497,3711.3,3711.2,2.44]
[1753494813339,30.0,3710.2,3707.8,2.54983813]
[1753494813539,0.55,3708.1,3707.3,0.4651]
[1753494813739,6.2838579,3710.1,3706.9,0.4651]
[1753494813963,0.497,3709.4,3708.1,4.05212057]
[1753494814271,0.4306,3709.3,3708.1,0.459]
[1753494814431,2.69578183,3709.5,3708.7,4.05212057]
[1753494814625,2.69578183,3709.5,3708.5,2.69645956]
[1753494814626,0.8263,3709.5,3708.8,2.601]
[1753494814829,1.3233,3710.1,3708.8,2.601]
[1753494815054,2.69571431,3709.6,3708.9,4.86363057]
[1753494815232,0.4306,3709.8,3708.0,0.4651]
[1753494815428,0.497,3710.0,3708.8,4.05212057]
[1753494815646,0.4306,3710.0,3708.9,6.065]
[1753494815969,0.8263,3710.1,3708.9,6.8345]
[1753494816269,3.1920647,3710.5,3708.9,6.8345]
[1753494816270,0.4306,3710.5,3709.3,0.55]
[1753494816437,0.4306,3710.5,3709.6,4.05212057]
[1753494816632,0.4306,3710.5,3709.6,0.459]
[1753494817134,2.69528064,3710.2,3708.9,0.7695]
[1753494817344,0.4306,3710.1,3708.9,0.7695]
[1753494817575,0.31258806,3710.0,3708.9,0.7695]
[1753494817974,0.31258806,3710.0,3709.0,2.611]
[1753494818284,0.4306,3709.9,3709.1,2.61]
[1753494818470,0.4306,3709.9,3709.1,2.56]
[1753494818848,0.4306,3709.9,3709.1,5.25605504]
[1753494819183,0.4306,3709.9,3709.1,5.30505504]
[1753494820045,0.4306,3709.9,3708.8,2.69627078]
[1753494820046,0.4306,3709.9,3709.2,2.6959866]
[1753494820262,0.4306,3709.9,3709.1,2.607]
[1753494820486,0.31260313,3709.8,3709.1,2.69607136]
[1753494821283,0.31260313,3709.8,3709.2,2.69599157]
[1753494821487,0.4306,3709.9,3709.2,2.69599157]
[1753494822171,0.4306,3709.9,3709.1,2.69606825]
[1753494822781,3.12610266,3709.9,3709.0,2.607]
[1753494822952,3.12610266,3709.9,3709.0,5.30313675]
[1753494823353,0.4306,3709.9,3709.1,2.69606535]
[1753494823547,0.1344,3709.4,3709.1,2.69606535]
[1753494824270,0.1344,3709.4,3709.0,2.602]
[1753494824271,0.1344,3709.4,3709.3,2.69592645]
[1753494824684,0.1344,3709.4,3709.3,3.15492645]
[1753494826002,0.1344,3709.4,3709.3,0.459]
[1753494826210,0.1344,3709.4,3709.2,2.69599407]
[1753494826908,0.1344,3709.4,3709.3,2.69592645]
[1753494827625,0.4306,3710.2,3709.5,2.69574996]
[1753494827924,4.00590557,3710.2,3709.5,2.69574996]
[1753494828228,0.1344,3709.6,3709.4,2.69584355]
[1753494828597,0.1344,3709.6,3709.3,0.459]
[1753494828799,0.1344,3709.6,3709.5,2.6957811]
[1753494829000,5.73379119,3710.4,3709.6,2.69570447]
[1753494829343,0.1344,3709.7,3709.6,2.69570447]
[1753494829694,0.010792,3710.3,3709.8,2.69555099]
[1753494829886,0.1344,3709.9,3709.8,2.69555099]
[1753494830297,0.1344,3709.9,3709.8,5.28955099]
[1753494830497,0.010792,3710.3,3709.9,2.69541896]
[1753494830807,0.1344,3710.0,3709.9,2.69541896]
[1753494833428,0.1344,3710.1,3710.0,2.69541778]
[1753494834630,0.010792,3710.3,3710.2,2.69527249]
[1753494834807,0.145192,3710.3,3710.2,2.69527249]
[1753494835611,0.145192,3710.3,3710.2,5.28227249]
[1753494836331,0.145192,3710.3,3710.1,2.69532154]
[1753494836534,0.602692,3710.3,3710.1,5.28232154]
[1753494836731,0.010792,3710.3,3710.2,2.69527249]
[1753494837518,0.010792,3710.3,3710.2,3.16697249]
[1753494837998,0.010792,3710.3,3710.1,5.28231951]
[1753494838411,0.468292,3710.3,3710.2,2.584]
[1753494839708,0.010792,3710.3,3710.2,5.27927249]
[1753494840940,0.010792,3710.3,3709.8,0.1344]
[1753494841145,0.010792,3710.3,3710.1,2.6953436]
[1753494841462,0.010792,3710.3,3710.2,2.581]
[1753494842351,0.010792,3710.3,3709.8,0.1344]
[1753494842556,0.9057,3710.2,3709.9,2.579]
[1753494842718,0.010792,3710.1,3709.9,2.579]
[1753494843627,0.010792,3710.1,3709.9,2.69548918]
[1753494843826,0.010792,3710.1,3709.9,2.578]
[1753494844919,0.010792,3710.1,3709.9,2.576]
[1753494847129,0.010792,3710.1,3709.6,2.8301039]
[1753494847317,0.468292,3710.1,3709.7,2.574]
[1753494847519,0.010792,3710.1,3709.7,2.574]
[1753494847757,0.010792,3710.1,3709.7,5.2696195]
[1753494848052,0.010792,3710.1,3709.7,2.574]
[1753494848260,0.010792,3710.1,3709.8,2.69556166]
[1753494848462,0.010792,3710.1,3709.7,2.574]
[1753494848651,0.010792,3710.1,3709.7,5.26961987]
[1753494850531,0.010792,3710.1,3709.7,2.571]
[1753494851261,0.4721,3710.0,3709.7,2.571]
[1753494851459,0.010792,3709.9,3709.7,2.571]
[1753494851666,0.010792,3709.9,3709.6,6.91280595]
[1753494851667,0.482892,3709.9,3709.6,6.91280595]
[1753494851872,0.482892,3709.9,3709.7,2.57]
[1753494852246,1.2889,3709.8,3709.6,6.65072058]
[1753494852466,0.010792,3709.7,3709.6,6.65072058]
[1753494852665,0.010792,3709.7,3709.6,7.12382058]
[1753494854243,0.010792,3709.7,3709.6,7.87522058]
[1753494854873,0.010792,3709.7,3709.6,7.87222058]
[1753494855075,0.010792,3709.7,3709.6,7.12082058]
[1753494855264,0.010792,3709.7,3709.6,9.81652901]
[1753494855664,0.010792,3709.7,3709.6,7.25152901]
[1753494855853,0.010792,3709.7,3709.6,9.81652901]
[1753494856057,0.010792,3709.7,3709.6,10.28822901]
[1753494856659,0.010792,3709.7,3709.6,6.20550843]
[1753494857767,0.010792,3709.7,3709.6,0.4731]
[1753494858100,0.010792,3709.7,3709.6,2.562]
[1753494858301,0.010792,3709.7,3709.6,2.561]
[1753494858763,0.010792,3709.7,3709.5,2.69576227]
[1753494858972,0.010792,3709.7,3709.6,2.561]
[1753494859154,0.010792,3709.7,3709.5,3.16886227]
[1753494859355,0.010792,3709.7,3709.6,2.56]
[1753494859863,0.010792,3709.7,3709.6,2.559]
[1753494860090,0.010792,3709.7,3709.6,5.73750843]
[1753494860997,0.010792,3709.7,3709.6,3.0418]
[1753494861199,0.010792,3709.7,3709.6,0.4828]
[1753494861487,0.010792,3709.7,3709.6,3.0418]
[1753494861675,0.010792,3709.7,3709.6,0.4828]
[1753494861875,0.010792,3709.7,3709.6,3.0408]
[1753494863987,0.010792,3709.7,3709.5,4.08272058]
[1753494864193,0.010792,3709.7,3709.6,2.555]
[1753494864915,0.955892,3709.7,3709.6,2.555]
[1753494865419,0.955892,3709.7,3709.5,4.08272058]
[1753494865723,0.955892,3709.7,3709.6,2.555]
[1753494865887,0.010792,3709.7,3709.6,2.555]
[1753494867284,0.010792,3709.7,3709.6,2.552]
[1753494867489,0.955892,3709.7,3709.6,2.552]
[1753494868007,0.468092,3709.7,3709.5,4.08272058]
[1753494868192,0.010792,3709.7,3709.6,2.552]
[1753494868387,0.010792,3709.7,3709.6,3.469]
[1753494868592,0.010792,3709.7,3709.6,6.98170843]
[1753494868895,0.010792,3709.7,3709.6,7.80767103]
[1753494873304,0.010792,3709.7,3709.6,7.37347103]
[1753494873512,0.010792,3709.7,3709.6,6.68190843]
[1753494874114,0.010792,3709.7,3709.6,7.23190843]
[1753494874435,0.010792,3709.7,3709.6,11.31462901]
[1753494878316,0.010792,3709.7,3709.6,14.74882901]
[1753494883813,0.010792,3709.7,3709.6,14.31462901]
[1753494884019,0.010792,3709.7,3709.6,16.46430915]
[1753494886848,0.010792,3709.7,3709.5,4.05212057]
[1753494886849,0.786592,3709.7,3708.6,0.7726]
[1753494887053,0.786592,3709.7,3709.5,2.69577718]
[1753494887271,0.955892,3709.7,3709.6,2.69570843]
[1753494891340,0.955892,3709.7,3709.5,5.23778062]
[1753494891835,0.955,3709.6,3709.5,5.23778062]
[1753494892541,0.010792,3709.7,3709.6,2.69570843]
[1753494892941,0.965792,3709.7,3709.6,2.69570843]
[1753494898567,0.482192,3709.7,3709.6,2.69570843]
[1753494898764,0.010792,3709.7,3709.6,2.69570843]
[1753494899170,0.494392,3709.7,3709.6,2.69570843]
[1753494899338,0.965792,3709.7,3709.6,2.69570843]
[1753494899872,0.010792,3709.7,3709.5,4.08272058]
[1753494900050,0.010792,3709.7,3709.6,2.69570843]
[1753494903661,0.010792,3709.7,3709.6,3.46990843]
[1753494903869,0.010792,3709.7,3709.6,9.41927665]
[1753494904381,0.010792,3709.7,3709.6,8.19097665]
[1753494905477,0.010792,3709.7,3709.6,12.19507665]
[1753494905678,0.010792,3709.7,3709.6,12.66857665]
[1753494906973,1.2486,3711.3,3710.5,0.55]
[1753494907175,1.2486,3711.3,3710.8,2.69476678]
[1753494907506,0.955,3711.2,3711.1,2.69461561]
[1753494911815,1.7852,3711.6,3711.0,2.531]
[1753494912022,0.4836,3711.5,3711.3,2.69446996]
[1753494912221,0.955,3711.5,3711.0,2.531]
[1753494912385,0.955,3711.5,3711.4,2.69440103]
[1753494912581,0.955,3711.7,3711.5,2.69432843]
[1753494912825,0.955,3711.6,3711.5,2.69432843]
[1753494913922,0.955,3711.8,3711.5,2.69432843]
[1753494914118,0.8302,3712.1,3711.5,2.69432843]
[1753494914322,0.8302,3712.1,3711.4,2.69437755]
[1753494914323,0.955,3711.7,3711.4,2.69437755]
[1753494914622,0.955,3711.6,3711.4,2.69437755]
[1753494915547,0.4714,3711.6,3711.4,2.69437755]
[1753494918027,0.4714,3711.6,3711.3,3.14855583]
[1753494918348,0.955,3711.6,3711.3,3.14855583]
[1753494919443,0.955,3711.6,3711.4,2.69440021]
[1753494921531,0.1344,3711.7,3711.4,2.69440021]
[1753494921846,1.0749,3711.7,3711.4,3.15530021]
[1753494923342,0.611,3711.7,3711.4,2.69440021]
[1753494923644,0.4639,3711.6,3711.4,2.69440021]
[1753494923832,0.4639,3711.6,3711.2,9.43765513]
[1753494924034,0.4639,3711.6,3711.3,0.4609]
[1753494924541,0.611,3711.7,3711.2,2.6604]
[1753494924824,0.1344,3711.7,3711.4,3.15529105]
[1753494925151,0.1344,3711.7,3711.5,0.4609]
[1753494926032,0.1344,3711.7,3711.3,2.69444723]
[1753494926243,1.0749,3711.7,3711.4,0.4609]
[1753494926630,0.1344,3711.7,3711.2,10.22485001]
[1753494926933,0.9405,3711.6,3711.3,3.155366]
[1753494927626,0.9405,3711.6,3711.3,0.4609]
[1753494928039,0.9405,3711.6,3711.3,3.15535276]
[1753494929455,0.9405,3711.6,3711.3,3.15536969]
[1753494930259,0.9405,3711.6,3711.3,0.4609]
[1753494931026,0.9405,3711.6,3711.3,3.15536857]
[1753494931260,0.9405,3711.6,3711.3,0.4609]
[1753494932465,0.9405,3711.6,3711.3,3.15537258]
[1753494933062,0.9405,3711.6,3711.3,0.4609]
[1753494934162,0.9405,3711.6,3711.4,0.2517502]
[1753494934366,0.9405,3711.6,3711.5,0.2517502]
[1753494934659,2.69454623,3711.2,3711.1,4.08272058]
[1753494934863,0.7748,3711.2,3711.1,0.25196853]
[1753494935167,4.54424623,3711.2,3711.1,0.25196853]
[1753494936565,4.54431817,3711.2,3710.5,3.5953]
[1753494936729,3.60381817,3711.2,3710.5,3.5953]
[1753494936930,0.9405,3711.1,3710.5,3.5953]
[1753494937229,3.63526051,3711.0,3710.5,3.1344]
[1753494937430,0.9405,3710.9,3710.5,3.1344]
[1753494937637,0.9405,3710.8,3710.5,3.5953]
[1753494939365,0.9405,3710.8,3710.5,7.67802058]
[1753494939672,0.4639,3710.8,3710.6,0.4609]
[1753494940080,0.9405,3711.0,3710.6,0.4609]
[1753494940283,2.69463672,3711.1,3710.6,0.4609]
[1753494940475,0.9405,3710.9,3710.6,0.4609]
[1753494942086,3.60376111,3711.2,3710.5,9.91216915]
[1753494942392,0.9405,3710.8,3710.5,9.91216915]
[1753494942588,0.9405,3710.8,3710.5,10.37306915]
[1753494942790,0.4766,3711.0,3710.6,0.4609]
[1753494942968,3.60376111,3711.2,3710.6,0.4609]
[1753494943156,0.9405,3711.1,3710.6,0.4609]
[1753494943357,3.60376111,3711.2,3710.6,0.4609]
[1753494943662,3.63512334,3711.1,3710.6,0.4609]
[1753494943986,0.9405,3711.1,3710.6,0.4609]
[1753494944189,0.9405,3711.0,3710.6,0.4609]
[1753494944796,0.9405,3711.0,3710.5,4.21712058]
[1753494944981,3.45848194,3710.6,3710.5,4.08272058]
[1753494945198,4.39898194,3710.6,3710.5,4.08272058]
[1753494945390,4.39898194,3710.6,3710.3,3.0]
[1753494945711,0.9405,3710.5,3710.3,3.0]
[1753494946078,0.9405,3710.4,3710.3,3.0]
[1753494947305,0.9405,3710.4,3710.2,4.21712058]
[1753494949310,0.9405,3710.4,3710.2,0.1344]
[1753494950516,0.4639,3710.4,3710.2,0.1344]
[1753494950718,1.7054,3710.6,3710.2,0.5919]
[1753494950895,0.9419,3710.5,3710.2,0.5919]
[1753494953418,3.45849666,3710.6,3710.2,0.1344]
[1753494953612,0.9419,3710.4,3710.2,0.1344]
[1753494954106,0.9419,3710.3,3710.2,0.1344]
[1753494954809,0.468,3710.3,3710.2,0.1344]
[1753494955121,3.63695589,3710.5,3710.2,0.1344]
[1753494955500,0.9419,3710.5,3710.2,0.1344]
[1753494956336,0.9419,3710.5,3710.2,0.5919]
[1753494960236,2.6314,3710.7,3710.2,1.0132225]
[1753494960415,2.6314,3710.7,3710.3,0.4575]
[1753494960622,0.9419,3710.6,3710.3,0.4575]